Cogmind - Beta 16 @@@ ROGUE MODE // 2025.11.12 @ 10:47:43 Player: Mozco Result: Self-destructed Performance ------------- Evolutions (6) 3000 Regions Visited (16) 3200 Robots Destroyed (273) 1365 Value Destroyed (8712) 8712 Prototype IDs (37) 740 Alien Tech Used (0) 0 Bonus (-216) -216 TOTAL SCORE: 16801 Bonus ------- High Alert Combat Kills 119 Follower Combat Kills 1590 Network Hubs Disabled 200 Met Data Miner 300 Built Enhanced Grunts 300 Met R17 at Cetus 500 Friendly Fire -3225 Cogmind --------- Core Integrity 861/1150 Matter 224/300 Energy 550/550 System Corruption 10% Temperature Hot (231) Movement Walking (190) Ox1 Location -4/Factory Parts ------- > --- POWER (2) -------- Reinforced Antimatter Reactor Reinforced Antimatter Reactor > --- PROPULSION (5) --- Flexi-carbon Leg Myomer Leg Myomer Leg > --- UTILITY (9) ------ Advanced Cooling System High-capacity Storage Unit Improved Target Analyzer Centrium Medium Armor Plating Advanced Hardlight Generator > --- WEAPON (3) ------- Heavy Tesla Rifle Hypervelocity Coil Gun Power Maul > --- INVENTORY (20) --- Reinforced Fission Core Light Antimatter Reactor Reinforced Antimatter Reactor Myomer Leg Myomer Leg Myomer Leg Myomer Leg Myomer Leg Advanced Myomer Leg Advanced Energy Well (500) Improved Sensor Array Launcher Guidance Computer Improved Weapon Cycler Improved Transmission Jammer Centrium Medium Armor Plating Improved Focal Shield Improved Dynamic Insulation System Heavy Laser Heavy Flak Cannon Heavy Missile Launcher Peak State ------------ > --- POWER ------------ Neutrino Core Antimatter Reactor > --- PROPULSION ------- Flexi-carbon Leg Enhanced Flexi-carbon Leg Enhanced Flexi-carbon Leg Myomer Leg Shield Leg > --- UTILITY ---------- High-capacity Storage Unit Advanced Signal Interpreter Target Analyzer Improved Target Analyzer Improved Heavy Armor Plating Centrium Medium Armor Plating Improved Focal Shield Advanced Hardlight Generator > --- WEAPON ----------- Improved Arc Projector Improved Arc Projector Long-range Proton Cannon > --- INVENTORY -------- Reinforced Fission Core Antimatter Reactor Myomer Leg Myomer Leg Myomer Leg Myomer Leg Advanced Myomer Leg Advanced Cooling System Advanced Energy Well Structural Scanner Improved Sensor Array Improved Weapon Cycler Improved Transmission Jammer Centrium Medium Armor Plating Experimental Thermal Shield Improved Dynamic Insulation System Improved System Restoration Module Improved Arc Projector Heavy Missile Launcher Power Maul [Rating: 122] Favorites ----------- Power Neutrino Core Engine Cooled Ion Engine Power Core Neutrino Core Reactor Antimatter Reactor Propulsion Aluminum Leg Leg Aluminum Leg Utility High-capacity Storage Unit Device Structural Scanner Storage High-capacity Storage Unit Processor Target Analyzer Hackware Hacking Suite Protection Improved Medium Armor Plating Weapon Improved EM Shotgun Energy Gun Improved EM Shotgun Energy Cannon EM Pulse Cannon Ballistic Gun Hypervelocity Coil Gun Ballistic Cannon Mini Assault Cannon Launcher Heavy Missile Launcher Impact Weapon Power Maul Build | -11 -10 -9 -9 -8 -7 -7 -7 -7 -6 -6 -5 -5 -5 -5 -5 -4 ------- Run | Yrd Mat Mat Sto Mat Fac Low Low Dat Pro Fac Fac Ext Cet Arc Hub Fac Slots Evolved 12 | . . 2 . 2 2 . . . . 2 2 . . . . 2 Power 1 | . . . . . . . . . . . 1 . . . . . Propulsion 3 | . . . . 2 . . . . . 1 . . . . . . Utility 7 | . . 2 . . 2 . . . . 1 1 . . . . 1 Weapon 1 | . . . . . . . . . . . . . . . . 1 Parts Attached 224 | 6 20 3 23 24 31 6 1 . 5 20 9 16 12 3 14 31 Power 29 | 1 2 . 3 1 2 1 . . 2 . 2 4 1 1 2 7 Engine 11 | 1 2 . 3 1 2 . . . 2 . . . . . . . Core 12 | . . . . . . 1 . . . . 2 4 1 . 1 3 Reactor 6 | . . . . . . . . . . . . . . 1 1 4 Propulsion 60 | 2 7 1 3 13 4 1 . . 1 6 . 5 3 . 7 7 Treads . | . . . . . . . . . . . . . . . . . Leg 60 | 2 7 1 3 13 4 1 . . 1 6 . 5 3 . 7 7 Wheel . | . . . . . . . . . . . . . . . . . Hover . | . . . . . . . . . . . . . . . . . Flight . | . . . . . . . . . . . . . . . . . Utility 70 | 1 5 2 5 6 10 2 . . 1 10 3 5 4 2 4 10 Device 30 | . 3 1 2 2 4 . . . . 5 3 2 2 1 2 3 Storage 7 | 1 1 . 1 . . 1 . . . 1 . . . . 1 1 Processor 11 | . 1 . . 1 2 1 . . . 2 . 1 . . . 3 Hackware 5 | . . 1 . . 2 . . . . 1 . . 1 . . . Protection 17 | . . . 2 3 2 . . . 1 1 . 2 1 1 1 3 Artifact . | . . . . . . . . . . . . . . . . . Weapon 65 | 2 6 . 12 4 15 2 1 . 1 4 4 2 4 . 1 7 Energy Gun 33 | 2 5 . 7 1 6 . . . . 2 . 1 3 . . 6 Energy Cannon 19 | . . . 2 2 6 1 1 . . 1 4 1 . . 1 . Ballistic Gun 5 | . 1 . 1 . . . . . . 1 . . 1 . . 1 Ballistic Cannon 1 | . . . . . 1 . . . . . . . . . . . Launcher 5 | . . . 2 1 1 1 . . . . . . . . . . Special Weapon . | . . . . . . . . . . . . . . . . . Impact Weapon 2 | . . . . . 1 . . . 1 . . . . . . . Slashing Weapon . | . . . . . . . . . . . . . . . . . Piercing Weapon . | . . . . . . . . . . . . . . . . . Special Melee Weapon . | . . . . . . . . . . . . . . . . . Unidentified Prototypes 22 | . . . 5 . 4 . . . . 1 . . 3 . 3 6 Corrupted Parts 21 | . 4 . . 7 . . . . 2 3 . 1 . . 3 1 System Corruption 96 | . 8 . . 29 . . . . 14 14 . 2 . . 21 8 Parts Lost 72 | . 5 . 8 8 1 . . . . 2 6 9 2 1 9 21 Power 10 | . 1 . 1 . . . . . . . 2 2 . . 1 3 Propulsion 19 | . 1 . 3 4 . . . . . . 2 4 . . 2 3 Utility 18 | . . . 1 1 . . . . . . 1 3 1 1 4 6 Weapon 25 | . 3 . 3 3 1 . . . . 2 1 . 1 . 2 9 Highest Loss Streak 9 | . 3 . 4 2 1 . . . . 1 4 4 1 1 9 8 To Critical Strikes 1 | . . . . . . . . . . . . . . . . 1 Average Backups 17 | 1 6 9 15 19 19 19 20 20 19 19 18 19 19 19 19 17 Power . | . . 1 1 1 . . 1 1 1 1 . 1 1 1 1 . Propulsion 2 | . 2 2 . 1 1 3 3 3 3 4 2 2 2 3 3 5 Utility 8 | . 1 3 6 8 11 8 9 9 8 7 7 8 8 8 8 7 Weapon 6 | . 2 2 6 8 5 7 7 7 7 6 8 7 7 7 6 3 Tool/Special . | . . . . . . . . . . . . . . . . . Unused Backups 38 | . 2 2 5 6 6 . 1 . . 1 . 1 2 . 1 11 Power 6 | . . . 3 . . . . . . . . . 1 . . 2 Propulsion 8 | . 2 . . 1 . . . . . . . . . . . 5 Utility 14 | . . 1 1 3 1 . 1 . . 1 . 1 1 . 1 3 Weapon 10 | . . 1 1 2 5 . . . . . . . . . . 1 Tool/Special . | . . . . . . . . . . . . . . . . . Average Slot Usage (%) 97 | . 96 91 97 95 99 100 100 100 100 98 97 90 95 100 97 96 Engine 5 | . 11 11 10 9 7 . . . 5 6 . . . . . . Core 2 | . . . . . . 6 7 7 1 . 9 7 11 10 2 4 Leg 27 | . 27 20 21 32 30 30 30 30 30 32 27 23 29 29 28 25 Device 9 | . 13 7 5 4 9 7 7 7 8 14 13 14 4 5 9 14 Storage 7 | . 14 11 11 9 7 7 7 7 7 6 5 5 5 5 5 5 Processor 18 | . . 11 11 15 23 29 30 30 24 18 17 22 23 23 23 17 Hackware 2 | . . 7 11 2 1 . . . . . . . . 5 4 . Protection 3 | . . . 5 4 3 . . . 4 4 7 2 6 5 1 6 Energy Gun 8 | . 24 22 18 4 10 2 . . . 4 1 5 10 9 2 7 Energy Cannon 5 | . . . . 11 2 7 14 15 11 6 6 5 . 1 6 3 Launcher 1 | . . . 2 1 . 4 . . 1 . 1 . . . . . Peak Build Rating 122 | 6 8 15 22 29 46 52 50 49 49 62 76 85 97 93 108 122 Average Rating 50 | 5 7 13 19 23 38 49 49 49 46 56 71 72 84 89 94 111 On Entrance 45 | . 6 8 15 21 27 45 49 49 49 48 62 58 81 93 92 74 Avg Prop Armor Cover (%) 5 | . . . . 4 . . . . . . 7 7 . . . . Naked Turns . | . . . . . . . . . . . . . . . . . Heaviest Build 124 | 12 20 20 60 64 76 69 68 67 78 79 87 89 90 87 98 124 Greatest Support 126 | 20 20 20 20 47 71 71 71 71 71 94 94 100 100 100 121 126 Greatest Overweight (x) 4 | 1 . 1 4 2 1 . . . 1 . 2 2 . . 1 1 Average Overweight (x) . | . . . 1 1 . . . . . . . . . . . . Largest Inventory Capacity 20 | 8 10 10 20 20 20 20 20 20 20 20 20 20 20 20 20 20 Average Capacity 19 | 7 8 10 18 20 20 20 20 20 20 20 20 20 20 20 20 20 Most Carried 20 | 2 10 10 20 20 20 20 20 20 20 20 20 20 20 20 20 20 Average Carried 17 | 1 6 9 15 19 19 19 20 20 19 19 18 19 19 19 19 17 Final Capacity 20 | 8 10 10 20 20 20 20 20 20 20 20 20 20 20 20 20 20 Final Carried 20 | 2 10 10 20 20 20 20 20 20 20 20 19 20 20 20 18 20 Class Distribution -------------------- 55% | Scavenger-Mutant 27% | Mutant 5% | Commander-Mutant 5% | Scavenger-Gunner Dominant Class ---------------- Mutant | -10/Materials Scavenger-Mutant | -9/Materials Scavenger-Mutant | -9/Storage Scavenger-Mutant | -8/Materials Scavenger-Mutant | -7/Factory Mutant | -7/Lower Caves Mutant | -7/Lower Caves Mutant | -7/Data Miner Mutant | -6/Proximity Caves Scavenger-Mutant | -6/Factory Skirmisher | -5/Factory Scavenger-Mutant | -5/Extension Scavenger-Mutant | -5/Cetus Scavenger-Mutant | -5/Archives Scavenger-Mutant | -5/Hub_04(d) Scavenger-Gunner | -4/Factory Resources | -11 -10 -9 -9 -8 -7 -7 -7 -7 -6 -6 -5 -5 -5 -5 -5 -4 ----------- Run | Yrd Mat Mat Sto Mat Fac Low Low Dat Pro Fac Fac Ext Cet Arc Hub Fac Matter Collected 5137 | 217 247 . 455 532 776 202 10 . 215 515 65 522 191 106 372 712 Remotely . | . . . . . . . . . . . . . . . . . Salvage Created 12115 | . 950 . 1858 2107 1686 216 213 . 325 1227 300 752 205 354 550 1372 Parts 602 | . 50 . 122 101 88 12 3 . 14 74 16 32 9 13 11 57 Haulers Intercepted 20 | . 2 . 6 4 2 . . . . 3 . . . . 3 . Recyclers Shooed 9 | . 1 . 1 . 2 . . . . 3 . 2 . . . . Parts Field Recycled . | . . . . . . . . . . . . . . . . . Retrieved Matter . | . . . . . . . . . . . . . . . . . Parts Self-Destructed 13 | . . . . . . 3 1 . 9 . . . . . . . Prevented 9 | . . . . . . . 2 . 7 . . . . . . . Parts Restored . | . . . . . . . . . . . . . . . . . Kills | -11 -10 -9 -9 -8 -7 -7 -7 -7 -6 -6 -5 -5 -5 -5 -5 -4 ------- Run | Yrd Mat Mat Sto Mat Fac Low Low Dat Pro Fac Fac Ext Cet Arc Hub Fac Combat Hostiles Destroyed 172 | . 20 . 27 33 25 6 1 . 8 15 7 10 1 . 1 18 Melee 1 | . . . . . . . . . . . . . . . . 1 Guns 61 | . 19 . 20 10 7 . . . . 1 1 . 1 . . 2 Cannons 32 | . . . . 5 8 2 1 . 2 5 2 5 . . . 2 AOE 47 | . 1 . 7 11 3 3 . . 4 6 3 2 . . . 7 Classes Destroyed 19 | . 5 . 3 2 3 2 . . . 1 . 1 . . . 2 Worker 20 | . . . 9 4 1 . . . . 4 . . . . 1 1 Builder 16 | . . . . 3 5 . . . . 6 . . . . 1 1 Tunneler 3 | . . . . 1 1 . . . . . . . . . . 1 Hauler 20 | . 2 . 6 4 2 . . . . 3 . . . . 3 . Recycler 12 | . 2 . 3 4 2 . . . . . . 1 . . . . Operator 16 | . 2 . 2 1 1 . . . . 1 . . . 9 . . Watcher 11 | . . . 2 2 . . . . . 1 2 2 1 . . 1 Swarmer 49 | . 6 . 9 10 3 4 . . 4 4 4 5 . . . . Grunt 61 | . 14 . 6 16 11 . . . 2 4 . . . . . 8 Brawler 1 | . . . . . 1 . . . . . . . . . . . Duelist 2 | . . . . . 1 . . . 1 . . . . . . . Sentry 31 | . . . 12 7 5 . 1 . 1 1 . 4 . . . . Specialist 2 | . . . . . . . . . . . . . . . . 2 Hunter 10 | . . . . . . . . . . 5 1 . . . . 4 Programmer 10 | . . . . . 4 . . . . 1 2 . . . . 3 Heavy 1 | . . . . . . . . . . . . . . . . 1 Behemoth 1 | . . . . . . . . . . . . 1 . . . . Cetus Guard 1 | . . . . . . . . . . . . . 1 . . . Lightning 1 | . . . . . . . . . . . . . . . 1 . Samaritan 3 | . . . . . . 3 . . . . . . . . . . Thief 2 | . . . . . . 2 . . . . . . . . . . Savage 1 | . . . . . . . . . . . . . . . 1 . Guerrilla 1 | . . . . . . . . . . . . . . . 1 . Best Kill Streak 14 | . 6 . 7 11 12 4 1 . 4 14 4 3 1 4 3 4 Combat Bots Only 7 | . 6 . 4 7 5 4 1 . 4 7 4 3 1 . 1 4 Max Kills in Single Turn 4 | . 1 . 3 3 4 2 1 . 3 4 3 3 1 1 2 3 Gunslinging . | . . . . . . . . . . . . . . . . . Exploded 3 | . 1 . 3 3 2 2 . . 3 2 3 2 . . . 2 Melee 1 | . . . . . . . . . . . . . . . . 1 Uniques/NPCs Destroyed 1 | . . . . . . . . . . . . . 1 . . . A7 (-5/Cetus) Combat | -11 -10 -9 -9 -8 -7 -7 -7 -7 -6 -6 -5 -5 -5 -5 -5 -4 -------- Run | Yrd Mat Mat Sto Mat Fac Low Low Dat Pro Fac Fac Ext Cet Arc Hub Fac Hostile Shots Fired 1415 | . 108 . 120 124 209 21 9 . 41 170 60 112 9 12 97 323 Missed 433 | . 32 . 35 32 76 5 6 . 22 49 9 33 2 3 22 107 Hits 982 | . 76 . 85 92 133 16 3 . 19 121 51 79 7 9 75 216 Melee 4 | . . . . . . 4 . . . . . . . . . . Projectile 978 | . 76 . 85 92 133 12 3 . 19 121 51 79 7 9 75 216 AOE 2 | . . . . . . . . . . . 2 . . . . . Critical Strikes 45 | . 1 . 2 5 2 . . . . 3 6 2 1 1 4 18 Actively Blocked 1 | . . . . . . . . . . 1 . . . . . . Part Disruptions 4 | . . . . . 1 . . . . . 1 . . . 2 . Damage Taken 14615 | . 805 . 1154 1492 1224 263 28 . 199 1448 1037 1443 177 208 1493 3644 Core 1649 | . 168 . 47 139 148 74 . . 42 182 77 282 . . 201 289 Absorbed by Shields 1970 | . . . 105 40 329 . . . 8 236 145 514 78 . 15 500 Redirected to Shielding 107 | . . . . . . . . . . 55 52 . . . . . Ignored by Resistances 1271 | . . . . . 25 . . . 10 206 7 . 9 65 268 681 Regen/Repaired (Parts) 397 | . . . 112 88 . . . . . . 197 . . . . . Core Remaining (%) 68 | 100 32 . 88 74 . . . . 62 78 . . . . 44 . Volleys Fired 592 | . 68 . 83 77 83 14 5 . 14 52 20 38 32 28 19 59 Largest 3 | . 2 . 2 2 2 2 2 . 2 2 2 2 2 2 2 3 Hottest 279 | . 90 . 126 112 136 124 126 . 126 145 180 180 160 141 279 227 Shots Fired 1082 | . 136 . 151 129 137 24 10 . 17 88 32 74 62 55 31 136 Gun 719 | . 136 . 145 39 81 10 . . . 47 3 47 62 45 13 91 Cannon 303 | . . . . 78 51 11 10 . 9 34 25 26 . 10 16 33 Launcher 60 | . . . 6 12 5 3 . . 8 7 4 1 . . 2 12 Special . | . . . . . . . . . . . . . . . . . Kinetic 42 | . 24 . . . 10 . . . . 6 . . . . . 2 Thermal 232 | . 40 . 13 16 50 . . . . 13 14 26 47 . 13 . Explosive 36 | . . . 6 4 . 3 . . 2 2 4 1 . . 2 12 Electromagnetic 772 | . 72 . 132 109 77 21 10 . 15 67 14 47 15 55 16 122 Robot Hit Streak 29 | . 14 . 10 19 17 14 23 . 4 11 8 23 9 8 9 29 Robot Miss Streak 5 | . 3 . 5 5 2 1 . . 1 4 4 2 5 4 4 5 Penetration Max . | . . . . . . . . . . . . . . . . . Secondary Targets 10 | . 6 . 1 1 1 . . . . . . . 1 . . . Max Gunslinging Chain 1 | . 1 . 1 1 1 . . . . . . . 1 . . . Shots Hit Robots 762 | . 91 . 107 93 98 18 9 . 7 59 18 62 39 36 21 104 Core Hits 486 | . 36 . 82 72 60 13 3 . 15 46 10 28 18 18 22 63 Critical Kills 1 | . . . . . 1 . . . . . . . . . . . Critical Parts Destroyed 4 | . . . . . . . . . . . . . . . 1 3 Critical Strikes 31 | . 2 . 2 5 1 . . . . 3 . 3 . 4 3 8 Burn 4 | . 1 . 2 1 . . . . . . . . . . . . Meltdown 1 | . . . . . 1 . . . . . . . . . . . Corrupt 22 | . 1 . . 4 . . . . . 3 . 3 . 4 2 5 Smash 4 | . . . . . . . . . . . . . . . 1 3 Melee Attacks 26 | . . . . . . . . . 1 1 1 . . . 2 21 Impact 26 | . . . . . . . . . 1 1 1 . . . 2 21 Slashing . | . . . . . . . . . . . . . . . . . Piercing . | . . . . . . . . . . . . . . . . . Sneak Attacks . | . . . . . . . . . . . . . . . . . Combat Hostiles . | . . . . . . . . . . . . . . . . . Follow-up Attacks . | . . . . . . . . . . . . . . . . . Damage Inflicted 24722 | . 1409 . 2563 3418 3102 808 214 . 666 2559 943 1589 1197 1209 1635 3410 Guns 9681 | . 1172 . 1713 533 1290 147 . . . 737 90 802 1197 678 310 1012 Cannons 6135 | . . . . 1429 836 264 214 . 112 676 551 653 . 356 461 583 Explosions 8296 | . 237 . 846 1450 949 397 . . 554 1146 302 81 . 175 802 1357 Melee 475 | . . . . . . . . . . . . . . . 45 430 Ramming 135 | . . . 4 6 27 . . . . . . 53 . . 17 28 Kinetic 413 | . 124 . . . 156 . . . . 125 . . . . . 8 Thermal 6970 | . 566 . 583 658 1492 . . . . 706 392 653 999 175 310 436 Explosive 4226 | . . . 418 639 . 397 . . 260 406 302 81 . . 802 921 Electromagnetic 12503 | . 719 . 1558 2115 1427 411 214 . 406 1322 249 802 198 1034 461 1587 Impact 475 | . . . . . . . . . . . . . . . 45 430 Slashing . | . . . . . . . . . . . . . . . . . Piercing . | . . . . . . . . . . . . . . . . . Highest Corruption 38 | . 8 . . 29 5 . . . 14 12 5 9 9 9 38 10 Average Corruption 9 | . 3 . . 19 1 . . . 13 7 4 7 9 9 10 4 Corruption Purged 17 | . . . . . 6 . . . . 5 . . . . . 6 Corruption Blocked 16 | . . . . . . 3 . . 5 8 . . . . . . Effects 210 | . 5 . . 57 9 . . . 2 33 2 35 20 18 17 12 Message Errors 49 | . 1 . . 11 1 . . . 1 11 1 7 7 3 3 3 Matter Fused 61 | . 2 . . 20 1 . . . 1 8 . 13 7 3 4 2 Heat Flow Errors 18 | . . . . 5 2 . . . . 3 . 5 . 2 1 . Energy Discharges 24 | . 2 . . 6 1 . . . . 3 . 3 2 3 2 2 Parts Rejected 2 | . . . . 1 . . . . . . . . . . . 1 Parts Fused 2 | . . . . . . . . . . . 1 1 . . . . Data Loss (minor) 25 | . . . . 7 1 . . . . 6 . 2 . 3 4 2 Data Loss (major) 6 | . . . . . 2 . . . . . . 1 1 . 2 . Misfires 4 | . . . . 1 . . . . . 1 . 1 . 1 . . Alerts 9 | . . . . 2 1 . . . . . . 2 1 1 1 1 Weapon Failures 10 | . . . . 4 . . . . . 1 . . 2 2 . 1 Overload Shots 1 | . . . . . . . . . . . . . . . 1 . Overflow Damage 804 | . 13 . 26 51 153 27 11 . 10 127 31 14 . 64 71 206 Projectiles 71 | . . . . . 17 . 11 . . . 12 11 . 1 19 . Explosions 518 | . 13 . 26 51 136 27 . . 10 127 19 . . 63 21 25 Melee 215 | . . . . . . . . . . . . 3 . . 31 181 Knockbacks 6 | . . . . . 2 . . . . . . . . . 1 3 Impact 4 | . . . . . . . . . . . . . . . 1 3 Kinetic 2 | . . . . . 2 . . . . . . . . . . . Secondary . | . . . . . . . . . . . . . . . . . Self-Inflicted Damage 858 | . 40 . 142 187 167 14 . . 20 29 183 41 . . 1 34 Shots 28 | . 2 . 6 5 4 1 . . 2 1 3 1 . . 1 2 Rammed . | . . . . . . . . . . . . . . . . . Targets Rammed 12 | . . . 2 1 4 . . . . . . 3 . . 1 1 Kicked 12 | . . . 2 1 4 . . . . . . 3 . . 1 1 Crushed . | . . . . . . . . . . . . . . . . . Highest Temperature 561 | . 246 . 159 319 246 225 96 . 163 312 432 342 334 249 291 561 Average Temperature 87 | . 73 . 41 73 64 85 46 . 72 84 165 87 151 96 142 114 Received Heat Transfer 3542 | . 321 . 360 651 318 . 12 . 45 214 . 184 18 27 585 807 Effects 15 | . . . . 2 . . . . . . 2 1 1 1 1 7 Shutdowns 5 | . . . . . . . . . . . 2 . . . . 3 Energy Bleed 4 | . . . . 1 . . . . . . . 1 . 1 1 . Interference 2 | . . . . . . . . . . . . . . . . 2 Matter Decay 1 | . . . . 1 . . . . . . . . . . . . Damage (minor) 1 | . . . . . . . . . . . . . 1 . . . Damage (major) 2 | . . . . . . . . . . . . . . . . 2 Siege Activations . | . . . . . . . . . . . . . . . . . Martial Activations . | . . . . . . . . . . . . . . . . . Shielding Activations . | . . . . . . . . . . . . . . . . . Robots Disrupted 7 | . . . . . 1 . . . . . . . 1 . . 5 Combat Hostiles 6 | . . . . . 1 . . . . . . . . . . 5 Robots Corrupted 40 | . . . . 8 7 1 . . 2 4 1 4 . 4 3 6 Combat Hostiles 30 | . . . . 7 6 1 . . 2 3 1 3 . . 1 6 Parts Fried 104 | . . . 7 17 9 13 . . 3 15 2 4 4 14 4 12 Impact Corruptions 9 | . . . . . . . . . . . . 1 . . 2 6 Robots Melted 1 | . . . . . 1 . . . . . . . . . . . Combat Hostiles 1 | . . . . . 1 . . . . . . . . . . . Parts Melted 17 | . 1 . 1 1 7 . . . . . 7 . . . . . Heat Transferred 8764 | . 1212 . 1031 968 2066 . . . . 646 407 814 663 150 407 400 Parts Sabotaged . | . . . . . . . . . . . . . . . . . Parts Stolen . | . . . . . . . . . . . . . . . . . Parts Stripped . | . . . . . . . . . . . . . . . . . Power Chain Reactions 31 | . 4 . 7 7 6 . . . . 2 . . . 2 . 3 Alert | -11 -10 -9 -9 -8 -7 -7 -7 -7 -6 -6 -5 -5 -5 -5 -5 -4 ------- Run | Yrd Mat Mat Sto Mat Fac Low Low Dat Pro Fac Fac Ext Cet Arc Hub Fac Maximum Alert Level 2 | . . . 1 2 2 . . . . 1 1 1 1 . 2 2 Low Security (%) 66 | 100 100 100 51 62 67 . . . . 73 17 94 81 100 29 60 Level 1 28 | . . . 48 18 19 . . . . 26 82 5 18 . 68 33 Level 2 5 | . . . . 19 13 . . . . . . . . . 2 5 Level 3 . | . . . . . . . . . . . . . . . . . Level 4 . | . . . . . . . . . . . . . . . . . Level 5 . | . . . . . . . . . . . . . . . . . High Security . | . . . . . . . . . . . . . . . . . Max Security . | . . . . . . . . . . . . . . . . . Peak Influence 638 | . 181 59 281 638 520 . . . . 332 294 228 230 199 402 566 Initial 198 | . . 59 7 28 198 . . . . 4 147 81 85 44 30 148 Average 169 | . 129 39 179 191 173 . . . . 110 229 127 166 144 246 190 Influence Increases 8184 | . 667 . 1039 1193 925 90 25 . 180 619 440 689 355 270 669 1023 Destroy 0b10 Robot/C 3980 | . 400 . 540 660 500 80 20 . 160 300 140 400 160 80 180 360 Destroy 0b10 Robot/NC 510 | . 30 . 110 95 60 . 5 . . 75 10 20 10 45 30 20 Destroy Leader 912 | . 84 . 186 172 154 10 . . 20 78 34 36 . . 66 72 Allied During Kill 679 | . . . . . . . . . . . . 160 159 120 240 . Successful Hack 306 | . 20 . 29 32 94 . . . . 30 75 7 . . . 19 Select Force Hacks 80 | . . . . . 30 . . . . . . . . . 50 . Disable Machine 450 | . 30 . 60 90 15 . . . . 90 75 . . 15 30 45 Anti-Garrison Action 200 | . . . . . . . . . . . . . . . . 200 Destroy Structure 632 | . 13 . 84 69 42 . . . . 46 106 36 26 10 58 142 Lose Combat Pursuer 435 | . 90 . 30 75 30 . . . . . . 30 . . 15 165 Influence Decreases 7680 | . 526 122 990 825 841 567 68 . 172 326 574 702 399 294 452 822 Entered New Map 1164 | . . 82 12 40 238 193 9 . . 4 154 86 69 66 56 155 Time Decay 4787 | . 336 40 619 395 583 374 59 . 172 302 350 466 230 198 206 457 Lost Part 720 | . 50 . 80 80 10 . . . . 20 60 90 20 10 90 210 Lost Ally 290 | . . . . 10 10 . . . . . 10 60 80 20 100 . Purge Threat 719 | . 140 . 279 300 . . . . . . . . . . . . Squads Dispatched 43 | . 4 . 2 5 11 . . . . 6 2 . . . 3 10 Investigation 17 | . 3 . . 3 4 . . . . 1 . . . . 2 4 Extermination 11 | . . . . . 5 . . . . 2 1 . . . . 3 Reinforcement 15 | . 1 . 2 2 2 . . . . 3 1 . . . 1 3 Assault . | . . . . . . . . . . . . . . . . . Garrison . | . . . . . . . . . . . . . . . . . Intercept . | . . . . . . . . . . . . . . . . . Searches Triggered . | . . . . . . . . . . . . . . . . . Data Miner Redirects 2 | . . . . . . . . . . 1 . . . . . 1 Construction Impeded 6 | . . . . 2 1 . . . . 2 1 . . . . . Haulers Reinforced 1 | . . . . . . . . . . 1 . . . . . . Active Scanning Responses . | . . . . . . . . . . . . . . . . . Cargo Convoy Interrupts . | . . . . . . . . . . . . . . . . . Stealth | -11 -10 -9 -9 -8 -7 -7 -7 -7 -6 -6 -5 -5 -5 -5 -5 -4 --------- Run | Yrd Mat Mat Sto Mat Fac Low Low Dat Pro Fac Fac Ext Cet Arc Hub Fac Distress Signals 28 | . 4 . 4 6 6 . . . . 2 . 2 2 . 2 . Communications Jammed . | . . . . . . . . . . . . . . . . . Distress Signals . | . . . . . . . . . . . . . . . . . Times Spotted 316 | . 34 1 40 50 42 5 1 . 9 21 12 29 9 13 15 35 Peak Tracking Total 8 | . 7 2 6 6 4 4 1 . 4 7 4 5 5 2 8 4 Tactical Retreats 20 | . 3 . 2 3 2 . . . . . . 2 . . 1 7 Traps | -11 -10 -9 -9 -8 -7 -7 -7 -7 -6 -6 -5 -5 -5 -5 -5 -4 ------- Run | Yrd Mat Mat Sto Mat Fac Low Low Dat Pro Fac Fac Ext Cet Arc Hub Fac Traps Triggered 9 | . 2 1 . . 2 . . . . . . 3 . . 1 . Indirectly 2 | . . . . . 2 . . . . . . . . . . . Trap Hack Attempts . | . . . . . . . . . . . . . . . . . Triggered . | . . . . . . . . . . . . . . . . . Disarmed . | . . . . . . . . . . . . . . . . . Reprogrammed . | . . . . . . . . . . . . . . . . . Reused . | . . . . . . . . . . . . . . . . . Traps Extracted . | . . . . . . . . . . . . . . . . . Installed . | . . . . . . . . . . . . . . . . . Triggered . | . . . . . . . . . . . . . . . . . Machines | -11 -10 -9 -9 -8 -7 -7 -7 -7 -6 -6 -5 -5 -5 -5 -5 -4 ---------- Run | Yrd Mat Mat Sto Mat Fac Low Low Dat Pro Fac Fac Ext Cet Arc Hub Fac Machines Disabled 30 | . 2 . 4 6 1 . . . . 6 5 . . 1 2 3 Max in Single Turn 5 | . 1 . 1 2 1 . . . . 5 2 . . . . 1 Garrison Access 1 | . . . . . . . . . . . . . . . . 1 Network Hub 1 | . . . . . . . . . . . . . . . 1 . Machines Repaired . | . . . . . . . . . . . . . . . . . Machines Dismantled . | . . . . . . . . . . . . . . . . . Machines Sabotaged 1 | . . . . . . . . . . . . . . . 1 . Overloaded Fab Kills . | . . . . . . . . . . . . . . . . . Hacking | -11 -10 -9 -9 -8 -7 -7 -7 -7 -6 -6 -5 -5 -5 -5 -5 -4 --------- Run | Yrd Mat Mat Sto Mat Fac Low Low Dat Pro Fac Fac Ext Cet Arc Hub Fac Machines Accessed 68 | . 6 . 10 12 14 . . 3 . 4 4 6 . . 4 5 Terminals 47 | . 6 . 9 8 7 . . . . 4 2 5 . . 4 2 Fabricators 4 | . . . . . 3 . . . . . . . . . . 1 Repair Stations 4 | . . . 1 2 . . . . . . 1 . . . . . Recycling Units 5 | . . . . 1 3 . . . . . . 1 . . . . Scanalyzers 4 | . . . . 1 1 . . . . . 1 . . . . 1 Garrison Access 1 | . . . . . . . . . . . . . . . . 1 Total Hacks 219 | . 22 . 27 41 34 . . 22 . 15 12 19 . . 7 20 Successful 121 | . 10 . 18 24 18 . . 22 . 4 8 7 . . 2 8 Failed 97 | . 11 . 9 17 16 . . . . 11 4 12 . . 5 12 Catastrophic 15 | . 1 . . 1 4 . . . . 2 . 1 . . 2 4 Database Lockouts 1 | . 1 . . . . . . . . . . . . . . . Manual 86 | . 14 . 9 17 15 . . . . 7 2 11 1 . 6 4 Terminals 149 | . 22 . 23 32 18 . . . . 15 5 18 . . 7 9 Fabricators 9 | . . . . . 6 . . . . . . . . . . 3 Repair Stations 15 | . . . 4 6 . . . . . . 5 . . . . . Recycling Units 8 | . . . . 1 6 . . . . . . 1 . . . . Scanalyzers 12 | . . . . 2 4 . . . . . 2 . . . . 4 Garrison Access 4 | . . . . . . . . . . . . . . . . 4 Terminal Hacks 58 | . 5 . 9 11 4 . . 22 . 1 1 4 . . . 1 Record 2 | . . . . . . . . 2 . . . . . . . . Part Schematic 17 | . . . 3 . 2 . . 11 . . . 1 . . . . Robot Schematic 6 | . . . . . . . . 6 . . . . . . . . Robot Analysis 7 | . 1 . . 2 1 . . . . . 1 1 . . . 1 Prototype ID Bank 7 | . 1 . . 2 . . . 3 . . . 1 . . . . Open Door 4 | . . . 4 . . . . . . . . . . . . . Branch Access Points 2 | . 1 . . . 1 . . . . . . . . . . . Unreport Threat 5 | . 1 . 2 2 . . . . . . . . . . . . Locate Traps 3 | . . . . 2 . . . . . . . 1 . . . . Hauler Manifests 1 | . . . . 1 . . . . . . . . . . . . Zone Layout 4 | . 1 . . 2 . . . . . 1 . . . . . . Fabricator Hacks 7 | . . . . . 5 . . . . . . . . . . 2 Load Schematic 4 | . . . . . 3 . . . . . . . . . . 1 Build 3 | . . . . . 2 . . . . . . . . . . 1 Repair Station Hacks 12 | . . . 4 4 . . . . . . 4 . . . . . Scan Component 7 | . . . 2 3 . . . . . . 2 . . . . . Repair 5 | . . . 2 1 . . . . . . 2 . . . . . Recycling Unit Hacks 2 | . . . . 1 1 . . . . . . . . . . . Report Inventory 1 | . . . . 1 . . . . . . . . . . . . Retrieve Components 1 | . . . . . 1 . . . . . . . . . . . Scanalyzer 10 | . . . . 2 4 . . . . . 2 . . . . 2 Insert Component 5 | . . . . 1 2 . . . . . 1 . . . . 1 Analyze 5 | . . . . 1 2 . . . . . 1 . . . . 1 Garrison Access Hacks . | . . . . . . . . . . . . . . . . . Unauthorized Hacks 32 | . 5 . 5 6 4 . . . . 3 1 3 . . 2 3 Terminals 29 | . 5 . 5 6 2 . . . . 3 1 3 . . 2 2 Assimilate 7 | . 2 . 3 1 . . . . . . 1 . . . . . Botnet 15 | . 2 . 1 4 2 . . . . 2 . 2 . . . 2 Operators 5 | . 1 . 1 1 . . . . . 1 . 1 . . . . Sabotage 2 | . . . . . . . . . . . . . . . 2 . Fabricators . | . . . . . . . . . . . . . . . . . Repair Stations . | . . . . . . . . . . . . . . . . . Recycling Units 2 | . . . . . 2 . . . . . . . . . . . Mask 1 | . . . . . 1 . . . . . . . . . . . Tunnel 1 | . . . . . 1 . . . . . . . . . . . Scanalyzers . | . . . . . . . . . . . . . . . . . Garrison Access 1 | . . . . . . . . . . . . . . . . 1 Jam 1 | . . . . . . . . . . . . . . . . 1 Data Cores Recovered 3 | . 1 . . 1 . . . . . 1 . . . . . . Used . | . . . . . . . . . . . . . . . . . Hacking Detections 56 | . 5 . 7 11 13 . . . . 4 4 6 . . 1 5 Full Trace Events 8 | . . . . 2 3 . . . . 1 . . . . . 2 Feedback Events . | . . . . . . . . . . . . . . . . . Feedback Blocked . | . . . . . . . . . . . . . . . . . Robot Schematics Acquired 6 | . . . . . . . . 6 . . . . . . . . Robots Built . | . . . . . . . . . . . . . . . . . Authchips . | . . . . . . . . . . . . . . . . . Time . | . . . . . . . . . . . . . . . . . Total Robot Build Rating . | . . . . . . . . . . . . . . . . . Part Schematics Acquired 22 | . . . 3 1 4 . . 11 . . 1 1 . . . 1 Parts Built 6 | . . . . . 4 . . . . . . . . . . 2 Authchips . | . . . . . . . . . . . . . . . . . Time 155 | . . . . . 97 . . . . . . . . . . 58 Total Part Build Rating 26 | . . . . . 12 . . . . . . . . . . 14 Part Studies Acquired . | . . . . . . . . . . . . . . . . . Parts Repaired 5 | . . . 2 1 . . . . . . 2 . . . . . Time 222 | . . . 102 26 . . . . . . 94 . . . . . Parts Recycled . | . . . . . . . . . . . . . . . . . Recycled Matter . | . . . . . . . . . . . . . . . . . Retrieved Matter . | . . . . . . . . . . . . . . . . . Retrieved Components 3 | . . . . . 3 . . . . . . . . . . . Parts Scanalyzed 5 | . . . . 1 2 . . . . . 1 . . . . 1 Part Schematics Acquired 5 | . . . . 1 2 . . . . . 1 . . . . 1 Parts Damaged 1 | . . . . . . . . . . . . . . . . 1 Bothacking | -11 -10 -9 -9 -8 -7 -7 -7 -7 -6 -6 -5 -5 -5 -5 -5 -4 ------------ Run | Yrd Mat Mat Sto Mat Fac Low Low Dat Pro Fac Fac Ext Cet Arc Hub Fac Used RIF Installer . | . . . . . . . . . . . . . . . . . Robots Hacked . | . . . . . . . . . . . . . . . . . Non-combat . | . . . . . . . . . . . . . . . . . Combat . | . . . . . . . . . . . . . . . . . Robot Hacks Applied . | . . . . . . . . . . . . . . . . . Relay Couplers Released . | . . . . . . . . . . . . . . . . . Fabnet Peak Effective % . | . . . . . . . . . . . . . . . . . Robots Rewired 11 | . . . . . . . . . . . . 11 . . . . Allies Hacked . | . . . . . . . . . . . . . . . . . Hacks Repelled . | . . . . . . . . . . . . . . . . . Allies | -11 -10 -9 -9 -8 -7 -7 -7 -7 -6 -6 -5 -5 -5 -5 -5 -4 -------- Run | Yrd Mat Mat Sto Mat Fac Low Low Dat Pro Fac Fac Ext Cet Arc Hub Fac Total Allies 23 | . . . 1 1 . . . . . . 1 15 5 . . . Largest Group 11 | . . . 1 1 1 . . . . . 1 10 11 10 9 . Highest-Rated Group 782 | . . . 10 10 10 . . . . . 26 447 782 623 601 . Highest-Rated Ally 159 | . . . 10 10 10 . . . . . 26 159 159 96 96 . Total Orders 7 | . . . . 2 . . . . . . 1 . 2 2 . . STAY 4 | . . . . 1 . . . . . . 1 . 1 1 . . FOLLOW 3 | . . . . 1 . . . . . . . . 1 1 . . Ally Attacks 208 | . . . . . . . . . . . . 64 52 31 61 . Total Damage 5276 | . . . . . . . . . . . . 1432 1027 664 2153 . Kills 32 | . . . . . . . . . . . . 11 8 4 9 . Allies Corrupted . | . . . . . . . . . . . . . . . . . Allies Melted 1 | . . . . . . . . . . . . . . . 1 . Intel | -11 -10 -9 -9 -8 -7 -7 -7 -7 -6 -6 -5 -5 -5 -5 -5 -4 ------- Run | Yrd Mat Mat Sto Mat Fac Low Low Dat Pro Fac Fac Ext Cet Arc Hub Fac Active Infowar (turns) 12236 | . 774 98 2204 1370 2374 866 468 103 795 957 797 177 . . 383 870 Sensors 2004 | . . . . . . . . . . 82 797 177 . . 195 753 IFF 2680 | . . . . . 266 859 468 103 604 380 . . . . . . Terrain 61 | . 61 . . . . . . . . . . . . . . . Structural 4463 | . 711 . . 65 1388 93 . . 203 663 718 . . . 53 569 T.N.C. 9042 | . 2 98 2204 1370 2374 866 468 103 795 762 . . . . . . Jamming 492 | . . . . . . . . . . . 247 2 . . 242 1 Robot Analysis Total 7 | . 1 . . 2 1 . . . . . 1 1 . . . 1 Derelict Logs Recovered 5 | . . . . . . 2 3 . . . . . . . . . Drone Launches . | . . . . . . . . . . . . . . . . . Drone Recoveries . | . . . . . . . . . . . . . . . . . Exploration | -11 -10 -9 -9 -8 -7 -7 -7 -7 -6 -6 -5 -5 -5 -5 -5 -4 ------------- Run | Yrd Mat Mat Sto Mat Fac Low Low Dat Pro Fac Fac Ext Cet Arc Hub Fac Turns Passed 15362 | 59 789 98 2204 1766 2374 866 468 103 795 1042 797 1280 489 405 444 1383 Spaces Moved 7902 | 43 428 67 748 656 1090 622 347 80 554 641 488 584 260 244 257 793 Core 5 | 5 . . . . . . . . . . . . . . . . Treads . | . . . . . . . . . . . . . . . . . Legs 7897 | 38 428 67 748 656 1090 622 347 80 554 641 488 584 260 244 257 793 Wheels . | . . . . . . . . . . . . . . . . . Hover . | . . . . . . . . . . . . . . . . . Flight . | . . . . . . . . . . . . . . . . . Fastest Speed 50 | 50 120 120 120 190 130 130 130 130 127 124 126 122 122 122 120 120 Average Speed 152 | 113 120 121 246 200 177 130 130 130 130 124 131 153 123 122 121 122 Slowest Speed 400 | 120 120 190 400 265 200 130 130 130 200 128 270 270 124 122 190 194 Overloaded Moves . | . . . . . . . . . . . . . . . . . Propulsion Burnouts . | . . . . . . . . . . . . . . . . . Robots Hopped . | . . . . . . . . . . . . . . . . . Potential Cave-ins . | . . . . . . . . . . . . . . . . . Cave-ins Triggered . | . . . . . . . . . . . . . . . . . Exploration Rate (%) 48 | 4 72 6 88 58 33 64 63 69 71 18 12 76 57 98 26 16 Regions Visited 16 Branch Regions 9 Pre-discovered Areas 3 | . . . . . 1 . 1 1 . . . . . . . . Known Exits Taken 8 | . . . . . 1 . . . 1 1 1 1 1 1 1 . Unknown Exits Taken 8 | 1 1 1 1 1 . 1 1 1 . . . . . . . . Scrap Searched 13 | . . . . . . 7 3 . 3 . . . . . . . Spaces Dug 77 | . . . 32 . 4 . . . 12 3 10 . . . 1 15 Terrain Destroyed 533 | . 13 . 85 80 38 39 . . 22 45 67 25 5 3 37 74 Melee 7 | . . . . . . . . . 1 1 1 . . . 1 3 Projectile 16 | . . . . . 3 . . . . 3 2 2 5 . 1 . AOE 510 | . 13 . 85 80 35 39 . . 21 41 64 23 . 3 35 71 Terrain Rammed . | . . . . . . . . . . . . . . . . . Walls Destroyed . | . . . . . . . . . . . . . . . . . Machines Disabled . | . . . . . . . . . . . . . . . . . Actions | -11 -10 -9 -9 -8 -7 -7 -7 -7 -6 -6 -5 -5 -5 -5 -5 -4 --------- Run | Yrd Mat Mat Sto Mat Fac Low Low Dat Pro Fac Fac Ext Cet Arc Hub Fac Total 10036 | 50 575 83 964 970 1379 655 354 79 601 789 608 883 366 293 347 1040 Wait 598 | . 33 . 50 164 80 1 . . 9 19 63 80 36 14 13 36 Move 7886 | 42 427 66 747 655 1089 621 346 79 553 640 487 583 259 243 256 793 Hop . | . . . . . . . . . . . . . . . . . Pick Up 174 | 2 13 5 26 15 23 3 1 . 3 19 11 12 6 1 4 30 Fast Attach 96 | 6 5 3 13 11 8 3 . . 1 2 . 11 7 1 11 14 Attach 82 | . 4 1 10 10 5 1 . . 1 6 8 7 2 1 4 22 Detach 8 | . . . 3 . 1 . . . . . . . . . . 4 Swap 238 | . 12 4 8 18 54 5 1 . 16 33 11 10 8 4 21 33 Drop 191 | . 13 4 22 19 32 7 1 . 3 17 7 7 15 1 16 27 Fire 592 | . 68 . 83 77 83 14 5 . 14 52 20 38 32 28 19 59 Melee 26 | . . . . . . . . . 1 1 1 . . . 2 21 Ram . | . . . . . . . . . . . . . . . . . Kick 12 | . . . 2 1 4 . . . . . . 3 . . 1 1 Crush . | . . . . . . . . . . . . . . . . . Escape Stasis . | . . . . . . . . . . . . . . . . . Rewire 133 | . . . . . . . . . . . . 132 1 . . . Trap . | . . . . . . . . . . . . . . . . . Miscellaneous . | . . . . . . . . . . . . . . . . . Route ------- -11/Scrapyard -10/Materials (discovered 4 exits: [*Mat x3] / *Min) -9/Materials -9/Storage -8/Materials -7/Factory (discovered 3 exits: *Fac / *Low x2) -7/Lower Caves -7/Lower Caves -7/Data Miner -6/Proximity Caves -6/Factory -5/Factory -5/Extension (discovered 2 exits: *Fac / *Cet) -5/Cetus (discovered 2 exits: *Fac / *Arc) -5/Archives (discovered 3 exits: *Fac / *Hub x2) -5/Hub_04(d) (discovered 2 exits: *Fac x2) -4/Factory History --------- Turn | Location | Event 9 | -11/Scrapyard | Discovered new exit (range 16) 60 | -11/Scrapyard | Entered Materials 231 | -10/Materials | Lost 3 parts (1p1n1w) 312 | -10/Materials | Build established: Mutant 395 | -10/Materials | Discovered new exit (range 11) 499 | -10/Materials | Central database locked down 541 | -10/Materials | Core integrity fell below 50% 560 | -10/Materials | Derelicts attacked the area 642 | -10/Materials | Discovered new exit (range 6) 687 | -10/Materials | Discovered new exit (range 16) 815 | -10/Materials | Discovered new exit (range 3) 835 | -10/Materials | Identified exit to Mines 849 | -10/Materials | Entered another Materials area 849 | -9/Materials | Evolved 2 slots: Utility x2 849 | -9/Materials | Discovered new exit (range 7) 947 | -9/Materials | Entered Storage 1103 | -9/Storage | Build established: Scavenger-Mutant 1593 | -9/Storage | Lost 4 parts (1p1n1u1w) 1728 | -9/Storage | Repaired Imp. EM Shotgun 1806 | -9/Storage | Repaired Imp. EM Shotgun? 3136 | -9/Storage | Discovered new exit (range 7) 3151 | -9/Storage | Entered Materials 3151 | -8/Materials | Accompanied by 1 ally 3151 | -8/Materials | Evolved 2 slots: Propulsion x2 3229 | -8/Materials | Repaired Aluminum Leg 3919 | -8/Materials | System corruption reached 10% 4526 | -8/Materials | Destroyed 7 combat bots 4844 | -8/Materials | Discovered new exit (range 11) 4917 | -8/Materials | Entered Factory 4917 | -7/Factory | Accompanied by 1 ally 4917 | -7/Factory | Evolved 2 slots: Utility x2 6095 | -7/Factory | Discovered new exit (range 14) 6167 | -7/Factory | Identified exit to Factory 6177 | -7/Factory | Identified exit to Lower Caves 6495 | -7/Factory | Fabricated Titanium Leg? 6824 | -7/Factory | Fabricated Titanium Leg (x2) 7135 | -7/Factory | Build established: Mutant 7291 | -7/Factory | Entered Lower Caves 7354 | -7/Lower Caves | Learned Factory terminal intel 7919 | -7/Lower Caves | Discovered new exit (range 5) 8157 | -7/Lower Caves | Entered another Lower Caves area 8180 | -7/Lower Caves | Attracted the attention of an 0b10 checkpoint 8207 | -7/Lower Caves | Learned Factory garrison access intel 8308 | -7/Lower Caves | Encountered a Warlord checkpoint 8511 | -7/Lower Caves | Learned Factory terminal intel 8599 | -7/Lower Caves | Discovered new exit (range 10) 8625 | -7/Lower Caves | Entered Data Miner 8625 | -7/Data Miner | Discovered new exit (range 6) 8650 | -7/Data Miner | Met Data Miner 8679 | -7/Data Miner | Learned location of Section 7 (-3) 8679 | -7/Data Miner | Acquired the access code to Warlord's prototype stash 8698 | -7/Data Miner | Received God Mode back door access code from Data Miner 8728 | -7/Data Miner | Entered Proximity Caves 8833 | -6/Proximity Caves | Attracted the attention of an 0b10 checkpoint 8952 | -6/Proximity Caves | Spotted B-75 Beast 9458 | -6/Proximity Caves | Discovered exit to Factory (range 9) 9493 | -6/Proximity Caves | System corruption reached 10% 9523 | -6/Proximity Caves | Entered Factory 9523 | -6/Factory | Evolved 2 slots: Propulsion x1, Utility x1 9524 | -6/Factory | Loaded intel: 26 terminal locations 9525 | -6/Factory | Loaded intel: 4 garrison access locations 9663 | -6/Factory | System corruption reached 10% 9860 | -6/Factory | Build established: Scavenger-Mutant 10007 | -6/Factory | Incoming investigation squad redirected 10360 | -6/Factory | Destroyed 7 combat bots 10527 | -6/Factory | Discovered new exit (range 4) 10530 | -6/Factory | Identified exit to Factory 10565 | -6/Factory | Entered another Factory area 10565 | -5/Factory | Evolved 2 slots: Power x1, Utility x1 10566 | -5/Factory | Identified exit to Extension 10567 | -5/Factory | Loaded intel: 28 terminal locations 11139 | -5/Factory | Repaired Flexi-carbon Leg? 11212 | -5/Factory | Repaired Hvy. Missile Launcher 11320 | -5/Factory | Lost 4 parts (1p2n1u) 11362 | -5/Factory | Entered Extension 11601 | -5/Extension | Build established: Mutant 11821 | -5/Extension | Rescued A7 12046 | -5/Extension | Lost 3 parts (1p1n1u) 12138 | -5/Extension | Spotted B-75 Beast 12151 | -5/Extension | Spotted B-75 Beast 12168 | -5/Extension | Destroyed B-75 Beast 12180 | -5/Extension | Allies destroyed B-75 Beast 12202 | -5/Extension | Lost 4 parts (1p2n1u) 12325 | -5/Extension | Build established: Scavenger-Mutant 12329 | -5/Extension | Rescued a captive Derelict 12375 | -5/Extension | Rescued a captive Derelict 12391 | -5/Extension | Rescued a captive Derelict 12583 | -5/Extension | Discovered new exit (range 10) 12585 | -5/Extension | Discovered new exit (range 6) 12594 | -5/Extension | Identified exit to Cetus 12642 | -5/Extension | Entered Cetus 12642 | -5/Cetus | Accompanied by 10 allies (A7) 12647 | -5/Cetus | Acquired a Cetus Manufacturing Module code from A7 12659 | -5/Cetus | Spotted Cetus Guard 12659 | -5/Cetus | Spotted Cetus Guard 12666 | -5/Cetus | Allies destroyed Cetus Guard 12668 | -5/Cetus | Allies destroyed Cetus Guard 12777 | -5/Cetus | Started Cetus Manufacturing Module 12795 | -5/Cetus | Discovered new exit (range 16) 12802 | -5/Cetus | Manufactured an Enhanced Grunt 12816 | -5/Cetus | Spotted Cetus Guard 12817 | -5/Cetus | Spotted Cetus Guard 12827 | -5/Cetus | Manufactured an Enhanced Grunt 12830 | -5/Cetus | Spotted Cetus Guard 12830 | -5/Cetus | Spotted Cetus Guard 12842 | -5/Cetus | Allies destroyed Cetus Guard 12848 | -5/Cetus | Destroyed Cetus Guard 12851 | -5/Cetus | Allies destroyed Cetus Guard 12852 | -5/Cetus | Manufactured an Enhanced Grunt 12852 | -5/Cetus | Allies destroyed Cetus Guard 12853 | -5/Cetus | Discovered new exit (range 16) 12860 | -5/Cetus | Met Revision 17 12877 | -5/Cetus | Manufactured an Enhanced Grunt 12882 | -5/Cetus | Lost 3 allies 12902 | -5/Cetus | Manufactured an Enhanced Grunt 13063 | -5/Cetus | Murdered A7 13067 | -5/Cetus | Extracted ID and sensor layout for unrecognized location from A7's data core 13120 | -5/Cetus | Identified exit to Archives 13131 | -5/Cetus | Entered Archives 13131 | -5/Archives | Accompanied by 10 allies 13262 | -5/Archives | Discovered new exit (range 16) 13289 | -5/Archives | Discovered new exit (range 15) 13392 | -5/Archives | Discovered new exit (range 13) 13520 | -5/Archives | Identified exit to Hub_04(d) 13536 | -5/Archives | Entered Hub_04(d) 13536 | -5/Hub_04(d) | Accompanied by 9 allies 13625 | -5/Hub_04(d) | Discovered new exit (range 9) 13652 | -5/Hub_04(d) | Identified exit to Factory 13757 | -5/Hub_04(d) | Found Prototype Device 13757 | -5/Hub_04(d) | Identified Exp. Thermal Shield 13885 | -5/Hub_04(d) | Network Hub disabled 13895 | -5/Hub_04(d) | Spotted Lightning 13898 | -5/Hub_04(d) | System corruption reached 10% 13898 | -5/Hub_04(d) | Spotted Lightning 13899 | -5/Hub_04(d) | Spotted Lightning 13949 | -5/Hub_04(d) | Destroyed Lightning 13957 | -5/Hub_04(d) | Core integrity fell below 50% 13968 | -5/Hub_04(d) | System corruption reached 30% 13970 | -5/Hub_04(d) | Lost 5 allies 13972 | -5/Hub_04(d) | Discovered exit to Factory (range 7) 13980 | -5/Hub_04(d) | Entered Factory 13980 | -4/Factory | Evolved 2 slots: Utility x1, Weapon x1 14008 | -4/Factory | Lost 9 parts (1p2n4u2w) 14191 | -4/Factory | Build established: Scavenger-Gunner 14321 | -4/Factory | Fabricated Myomer Leg? 14718 | -4/Factory | Lost 4 parts (1u3w) 14862 | -4/Factory | Lost 3 parts (1p1n1w) 14997 | -4/Factory | Incoming investigation squad redirected 15160 | -4/Factory | Lost 8 parts (2p2u4w) 15185 | -4/Factory | System corruption reached 10% 15188 | -4/Factory | Found Prototype Processor 15188 | -4/Factory | Identified Exp. Terrain Scan Processor 15332 | -4/Factory | Spotted B-86 Titan 15363 | -4/Factory | Self-destructed Last Messages --------------- 15340_ Target Analyzer destroyed. 15340_ Critical hit (Blast). 15340_ Slug penetrates Wall. 15341_ Overheating: System interference. 15341_ Power Maul temporarily disabled. 15341_ Adv. Hardlight Generator temporarily disabled. 15343_ Enh. Flexi-carbon Leg destroyed. 15343_ Knocked back. 15343_ Slug penetrates Wall. 15351_ Manufacturing Mainframe disabled. 15351_ Penetrated by Slug. 15351_ Slug penetrates Wall. 15354_ Slug penetrates Manufacturing Mainframe. 15357_ HV Slug penetrates Wall. 15357_ U-05 Engineer builds a Wall. 15358_ B-86 Titan activates siege mode. 15359_ Exp. Thermal Shield destroyed. 15360_ HV Slug penetrates G-67 Veteran. 15360_ HV Slug penetrates Wall. 15361_ U-05 Engineer builds a Wall. Map ----- +----------------------------------------------------+ | ????#! #? #????? | | ????# = # | """ ?????? | | ????# # """ ?????? | | ????# " + """ ?????? | | ????# # " " #????? | | ????# # "Y" +????? | | ????# #?""" #????? | | ????### ###? ?????? | | ####### #############????? | | # # # #????? | | # # # #????? | | # # # """ #????? | | # # # """ =#????? | | #* # # """ #????? | | #* + + "" "" #????? | | # # # ""G"" #????? | | # #% #############????? | | ####"## #??????????? | | ???# #??????????? | | ???# #??????????? | | ?###+#####; #??????????? | | ?# ; #??????????? | | ?# ; B ???????? | | ?# "" # BBk ???????? | | ?# /u == ??????? | | ?#!@ " # == ?????? | | ?# g """ # ????? | | ?# #?"" !!= ?????? | | ?# #?T !!= ?????? | | ?# #??" !=???????? | | ?##########???? ?????????? | | ???????????????????????????? | | ???????????????????????????? | | ???????????????????????????? | | ???????????????????????????? | | ???????????????????????????? | | ???????????????????????????? | | ???????????????????????????? | | ???????????????????????????? | | ???????????????????????????? | | ???????????????????????????? | | ???????????????????????????? | | ???????????????????????????? | | ???????????????????????????? | | ???????????????????????????? | | ???????????????????????????? | | ???????????????????????????? | | ???????????????????????????? | | ???????????????????????????? | | ???????????????????????????? | +----------------------------------------------------+ Best States ------------- Heat Dissipation 74 Coolant Potential 65 Energy Generation 39 Energy Capacity 1065 Matter Stores 300 Matter Capacity 300 Sight Range 16 Robot Scan Range 15 Terrain Scan Range 14 Terrain Scan Density 1010 Jamming Range 14 Corruption Block 7 Armor Coverage 1050 Resistance: KI 25 Resistance: TH 30 Utility Shielding 66 Evasion (%) 63 Targeting Accuracy 8 Target Analysis 8 Particle Charging 15 Offensive Hacking 10 Defensive Hacking 14 Item Schematics ----------------- Hrd. Light Armor Plating | -9/Storage | Hacked Shock Absorption System | -9/Storage | Hacked Greatsword | -9/Storage | Hacked System Shield | -8/Materials | Scanalyzed System Restoration Module | -7/Factory | Scanalyzed Titanium Leg | -7/Factory | Scanalyzed Hcp. Battery | -7/Factory | Hacked Imp. EM Pulse Cannon | -7/Factory | Hacked Combat Drone Bay | -7/Data Miner | Free Lgt. Regenerative Plating | -7/Data Miner | Free Cld. Aerolev Unit | -7/Data Miner | Free Gravity Neutralizer | -7/Data Miner | Free Hvy. Treads | -7/Data Miner | Free Adv. Cooling System | -7/Data Miner | Free Adv. Melee Analysis Suite | -7/Data Miner | Free Imp. Launcher Guidance Computer | -7/Data Miner | Free Mic. Fission Core | -7/Data Miner | Free Hvy. Phase Cannon | -7/Data Miner | Free Imp. Heavy Machine Gun | -7/Data Miner | Free Flexi-carbon Leg | -5/Factory | Scanalyzed Smartbomb Launcher | -5/Extension | Hacked Myomer Leg | -4/Factory | Scanalyzed Robot Schematics ------------------ O-24 Administrator | -7/Data Miner | Free B-48 Gladiator | -7/Data Miner | Free G-47 Trooper | -7/Data Miner | Free P-60 Hacker | -7/Data Miner | Free L-41 Fighter | -7/Data Miner | Free A-15 Conveyor | -7/Data Miner | Free Fabricated ------------ Titanium Leg | x2 | -7/Factory Titanium Leg | x2 | -7/Factory Myomer Leg | x2 | -4/Factory Repaired ---------- Imp. EM Shotgun | 2% | -9/Storage Imp. EM Shotgun | 37% | -9/Storage Aluminum Leg | 2% | -8/Materials Flexi-carbon Leg | 7% | -5/Factory Hvy. Missile Launcher | 15% | -5/Factory Studied --------- None Alien Tech Used ----------------- None Achievements -------------- Recruitment Drive Challenges ------------ None Game ------ Seed ZipVortexStrikerail Manual? 0 Play Time 02:57:36 Cumulative 259.5 hours Start 2025.11.12 @ 07:44:18 End 2025.11.12 @ 10:47:43 Sessions 1 Manual Loads 0 Difficulty Rogue Special Mode None Game No. 262 Rogue 258 Adventurer 3 Explorer 1 Win Type - Total 1 Types 1/0/0/0/0/0/0/0/0/0 Lore% 78 Gallery% 75 Achievement% 60 Wizard Run 0 Options --------- Layout 0 ASCII 0 Keyboard 0 Movement Mouse Keybinds 0 Fullscreen 2 Font 18/SmallcapsGlow Map View 76x50 Zoom Use 0% Tactical HUD 1 Map Filters NONE Filters NONE Steam 1 RUN: 96387215-aa8f-4c06-a3cb-55fedfd8afbc